bitfinex-derivatives/quotes_SOLF0:USTF0_20241012
["timestamp","ask_amount","ask_price","bid_price","bid_amount"]
[1728734995901,3.54282,146.33,146.3,3.4184]
[1728734996403,0.12502,146.33,146.31,3.4181]
[1728734999701,0.12502,146.33,146.32,8.41]
[1728734999908,0.12502,146.33,146.32,3.418]
[1728735002511,0.12502,146.33,146.31,3.4181]
[1728735004011,0.12502,146.33,146.29,8.41]
[1728735004206,0.12502,146.33,146.32,3.418]
[1728735005411,11.95282,146.33,146.3,3.4183]
[1728735006514,11.828,146.32,146.29,3.4186]
[1728735006713,8.41,146.32,146.29,3.4186]
[1728735007913,11.95282,146.33,146.29,3.4186]
[1728735010609,8.53502,146.33,146.3,3.4184]
[1728735011816,11.95272,146.33,146.3,3.4184]
[1728735013625,11.828,146.32,146.29,3.4186]
[1728735015621,11.95282,146.33,146.3,3.4184]
[1728735016128,8.53502,146.33,146.3,3.4184]
[1728735020134,8.41,146.31,146.25,1.4269]
[1728735020324,8.41,146.3,146.26,3.4194]
[1728735020525,8.41,146.28,146.25,1.4269]
[1728735020926,3.4188,146.29,146.25,4.8463]
[1728735021225,8.41,146.27,146.25,3.4194]
[1728735021429,8.41,146.27,146.22,8.41]
[1728735021830,8.41,146.27,146.23,3.42]
[1728735022033,8.41,146.26,146.23,3.42]
[1728735022929,8.41,146.25,146.21,1.48182]
[1728735023128,8.41,146.25,146.22,3.4202]
[1728735024736,8.41,146.26,146.22,3.4202]
[1728735024932,8.41,146.26,146.21,9.89182]
[1728735025130,8.41,146.26,146.23,3.4201]
[1728735025832,8.41,146.25,146.21,3.54542]
[1728735026733,8.41,146.23,146.21,0.12502]
[1728735027937,3.4197,146.25,146.21,0.12502]
[1728735028230,8.41,146.24,146.21,3.54552]
[1728735030331,8.41,146.24,146.22,3.4203]
[1728735031237,8.41,146.23,146.21,3.54552]
[1728735032341,8.41,146.23,146.21,0.12502]
[1728735035238,8.41,146.23,146.21,3.54542]
[1728735041848,8.41,146.23,146.21,0.12502]
[1728735043046,8.41,146.22,146.21,0.12502]
[1728735053048,3.4194,146.26,146.22,3.4201]
[1728735053254,3.4194,146.26,146.21,0.12502]
[1728735053453,8.41,146.24,146.21,0.12502]
[1728735054058,8.41,146.24,146.22,3.4203]
[1728735054251,3.4194,146.26,146.22,3.4203]
[1728735054456,8.41,146.25,146.21,0.12502]
[1728735054651,8.41,146.25,146.22,3.4203]
[1728735054960,8.41,146.24,146.22,3.4203]
[1728735058262,8.41,146.24,146.21,0.12502]
[1728735058463,8.41,146.24,146.23,3.4201]
[1728735058668,8.41,146.24,146.21,0.12502]
[1728735058861,8.41,146.22,146.21,0.12502]
[1728735069969,11.8303,146.22,146.17,3.4214]
[1728735070166,11.8303,146.22,146.16,2.6552]
[1728735070167,8.41,146.18,146.16,1.3583]
[1728735070771,8.41,146.18,146.15,3.54682]
[1728735070972,8.41,146.16,146.15,3.54682]
[1728735071270,8.41,146.16,146.15,0.12502]
[1728735074078,8.41,146.18,146.15,0.12502]
[1728735075280,3.4208,146.2,146.15,0.12502]
[1728735075480,8.41,146.18,146.15,3.54682]
[1728735076382,8.41,146.17,146.15,3.54682]
[1728735076780,8.41,146.16,146.15,3.54682]
[1728735077989,3.421,146.19,146.15,3.54682]
[1728735078285,8.41,146.17,146.15,3.54682]
[1728735080784,8.41,146.17,146.15,0.12502]
[1728735080990,3.4206,146.21,146.15,0.12502]
[1728735081179,8.41,146.19,146.15,0.12502]
[1728735082284,8.41,146.19,146.17,3.4213]
[1728735082587,8.41,146.18,146.15,0.12502]
[1728735082790,8.41,146.17,146.15,0.12502]
[1728735083185,8.41,146.18,146.16,3.4217]
[1728735085286,8.41,146.17,146.15,3.54682]
[1728735085488,8.41,146.17,146.15,0.12502]
[1728735088394,3.421,146.19,146.15,0.12502]
[1728735088589,8.41,146.16,146.15,0.12502]
[1728735088890,89.69745549,146.24,146.15,0.12502]
[1728735089295,8.41,146.18,146.15,0.12502]
[1728735089889,8.41,146.18,146.16,3.4216]
[1728735094702,3.4209,146.2,146.16,3.4216]
[1728735094996,8.41,146.18,146.16,3.4216]
[1728735095700,8.41,146.18,146.15,0.12502]
[1728735095905,8.41,146.19,146.15,8.53502]
[1728735096097,89.69745549,146.24,146.15,8.53502]
[1728735096400,8.41,146.21,146.15,8.53502]
[1728735096903,8.41,146.21,146.18,3.4211]
[1728735097907,3.4202,146.23,146.19,3.4209]
[1728735098106,8.41,146.21,146.19,3.4209]
[1728735098907,8.41,146.21,146.2,3.4208]
[1728735105413,8.41,146.21,146.17,8.41]
[1728735105603,8.41,146.21,146.19,3.4209]
[1728735106415,8.41,146.2,146.19,3.4209]
[1728735108413,3.4203,146.22,146.19,3.4209]
[1728735108414,8.41,146.21,146.19,3.4209]
[1728735112219,8.41,146.22,146.18,8.41]
[1728735112519,8.41,146.22,146.2,3.4207]
[1728735113312,8.41,146.22,146.19,3.4209]
[1728735115411,8.41,146.22,146.18,8.41]
[1728735115617,8.41,146.23,146.21,3.4205]
[1728735117021,8.41,146.23,146.2,3.4207]
[1728735119519,8.41,146.23,146.19,8.41]
[1728735120224,8.41,146.23,146.2,3.4206]
[1728735122216,3.42,146.24,146.2,3.4206]
[1728735122616,8.41,146.26,146.2,8.41]
[1728735123214,11.8295,146.26,146.22,3.4202]
[1728735125222,8.41,146.25,146.22,3.4202]
[1728735126025,3.4195,146.26,146.22,3.4202]
[1728735126330,8.41,146.25,146.22,3.4202]
[1728735138727,8.41,146.25,146.18,3.36022324]
[1728735138927,8.41,146.23,146.2,3.4206]
[1728735139233,3.4199,146.24,146.2,3.4206]
[1728735139234,8.41,146.22,146.2,3.4206]
[1728735142431,8.41,146.23,146.2,3.4206]
[1728735145337,8.41,146.23,146.21,3.4205]
[1728735148638,3.54422,146.27,146.21,8.41]
[1728735148841,8.53502,146.27,146.22,8.41]
[1728735149227,8.53502,146.27,146.24,3.4197]
[1728735149228,0.12502,146.27,146.24,3.4197]
[1728735149433,8.53502,146.27,146.24,3.4197]
[1728735150435,8.41,146.26,146.24,3.4197]
[1728735152438,8.41,146.25,146.24,3.4197]
[1728735153931,8.41,146.25,146.18,4.76242324]
[1728735154138,8.41,146.24,146.19,8.41]
[1728735154939,3.4196,146.25,146.21,3.4204]
[1728735155137,11.8296,146.25,146.21,3.4204]
[1728735155638,3.4196,146.25,146.22,3.4203]
[1728735155838,8.41,146.24,146.22,3.4203]
[1728735157142,8.41,146.24,146.18,11.77022324]
[1728735157343,11.8299,146.24,146.2,3.4206]
[1728735164253,8.41,146.24,146.21,3.4205]
[1728735173058,14.53,146.26,146.21,8.41]
[1728735174059,0.12502,146.27,146.23,8.41]
[1728735174556,0.12502,146.27,146.24,3.4196]
[1728735175957,0.12502,146.27,146.23,8.41]
[1728735176158,0.12502,146.27,146.25,3.4196]
[1728735179557,0.12502,146.27,146.26,3.4194]
[1728735181258,8.53502,146.27,146.24,3.4198]
[1728735182147,8.53502,146.27,146.25,3.4196]
[1728735185355,0.12502,146.27,146.25,3.4196]
[1728735185554,8.53502,146.27,146.25,3.4196]
[1728735193064,8.53502,146.27,146.24,3.4198]
[1728735193661,0.12502,146.27,146.25,3.4194]
[1728735193866,0.12502,146.27,146.26,8.41]
[1728735194169,0.12502,146.27,146.26,11.8294]
[1728735194761,0.12502,146.27,146.26,15.2918454]
[1728735194969,100.27150572,146.33,146.29,3.4185]
[1728735197968,100.27150572,146.33,146.3,3.4184]
[1728735198870,88.44360572,146.33,146.28,8.41]
[1728735199066,0.12502,146.33,146.29,8.41]
[1728735199467,0.12502,146.33,146.3,3.4184]
[1728735200167,8.53502,146.33,146.3,3.4184]
[1728735202765,11.828,146.32,146.29,3.4186]
[1728735203175,0.12502,146.33,146.28,8.41]
[1728735203475,8.53502,146.33,146.28,8.41]
[1728735204873,8.53502,146.33,146.29,3.4185]
[1728735205982,8.53502,146.33,146.29,8.41]
[1728735206172,8.53502,146.33,146.3,3.4183]
[1728735206375,0.12502,146.33,146.3,3.4183]
[1728735206774,0.12502,146.33,146.29,8.41]
[1728735207282,0.12502,146.33,146.3,3.4184]
[1728735207583,8.41,146.31,146.25,1.3217]
[1728735207777,8.41,146.31,146.26,8.41]
[1728735208080,8.41,146.31,146.27,8.41]
[1728735208582,8.41,146.32,146.27,8.41]
[1728735209386,8.41,146.32,146.29,3.4187]
[1728735214086,8.53502,146.33,146.3,3.4184]
[1728735214785,0.12502,146.33,146.3,8.41]
[1728735214990,0.12502,146.33,146.31,3.418]
[1728735215185,0.12502,146.33,146.29,8.41]
[1728735216184,8.53502,146.33,146.27,1.3308]
[1728735216386,8.53502,146.33,146.3,3.4184]
[1728735217387,8.41,146.32,146.28,8.41]
[1728735217784,0.12502,146.33,146.28,8.41]
[1728735217985,0.12502,146.33,146.29,8.41]
[1728735218287,0.12502,146.33,146.3,3.4182]
[1728735221484,0.12502,146.33,146.3,8.41]
[1728735222190,0.12502,146.33,146.32,3.418]
[1728735237408,0.12502,146.33,146.3,3.4184]
[1728735238309,0.12502,146.33,146.31,3.4182]
[1728735240412,0.12502,146.33,146.31,8.41]
[1728735240614,0.12502,146.33,146.32,3.418]
[1728735247712,0.12502,146.33,146.32,11.828]
[1728735253222,0.12502,146.33,146.32,3.418]
[1728735253619,0.12502,146.33,146.32,11.828]
[1728735258217,0.12502,146.33,146.32,3.418]
[1728735261020,0.12502,146.33,146.32,11.828]
[1728735271327,0.12502,146.33,146.32,3.418]
[1728735272538,0.12502,146.33,146.32,11.828]
[1728735273337,3.4184,146.31,146.25,3.4194]
[1728735273543,8.41,146.3,146.24,8.41]
[1728735273737,1.2902,146.32,146.24,8.41]
[1728735273738,8.41,146.29,146.24,8.41]
[1728735274236,1.2902,146.32,146.24,8.41]
[1728735274439,8.41,146.29,146.24,11.8296]
[1728735276843,11.8291,146.28,146.23,8.41]
[1728735277350,8.41,146.28,146.21,0.12502]
[1728735277648,8.41,146.27,146.22,8.41]
[1728735277944,8.41,146.28,146.24,8.41]
[1728735278636,11.8289,146.28,146.24,8.41]
[1728735278946,3.4189,146.28,146.24,8.41]
[1728735280744,3.4189,146.28,146.24,11.8298]
[1728735281544,1.2902,146.32,146.24,8.41]
[1728735281739,1.2902,146.32,146.21,0.12502]
[1728735281947,8.41,146.31,146.26,8.41]
[1728735282243,11.8284,146.31,146.27,8.41]
[1728735284240,3.4185,146.3,146.27,8.41]
[1728735287053,3.4185,146.3,146.26,11.8292]
[1728735287348,11.8289,146.28,146.24,11.8297]
[1728735289145,11.8289,146.28,146.24,8.41]
[1728735289746,11.8289,146.28,146.23,3.4199]
[1728735290046,11.8289,146.28,146.23,11.8299]
[1728735290246,11.8289,146.28,146.24,8.41]
[1728735290446,11.8289,146.28,146.24,11.8297]
[1728735290851,8.41,146.28,146.24,11.8297]
[1728735291151,3.4187,146.29,146.24,11.8297]
[1728735294853,3.4187,146.29,146.25,3.4195]
[1728735295055,11.8287,146.29,146.25,3.4195]
[1728735299851,8.41,146.28,146.25,3.4195]
[1728735300460,8.41,146.28,146.24,3.4197]
[1728735300461,11.829,146.28,146.24,3.4197]
[1728735300656,8.41,146.27,146.21,8.53502]
[1728735301355,8.41,146.27,146.22,8.41]
[1728735302365,8.41,146.27,146.24,3.4198]
[1728735302557,11.8291,146.28,146.24,3.4198]
[1728735303552,8.41,146.27,146.24,3.4198]
[1728735304557,11.8291,146.28,146.24,3.4198]
[1728735308061,11.8286,146.3,146.26,3.4194]
[1728735309071,3.4184,146.3,146.25,8.41]
[1728735309262,11.8284,146.3,146.25,8.41]
[1728735309461,8.41,146.29,146.26,3.4193]
[1728735310065,11.8287,146.29,146.26,3.4193]
[1728735316274,11.8287,146.29,146.24,8.41]
[1728735316275,8.41,146.27,146.24,3.4198]
[1728735316571,8.41,146.26,146.24,3.4198]
[1728735318476,11.8291,146.28,146.24,3.4198]
[1728735319867,3.4186,146.3,146.26,3.4193]
[1728735320069,1.2902,146.32,146.27,8.41]
[1728735320274,1.2902,146.32,146.28,8.41]
[1728735320474,4.7084,146.32,146.28,11.8287]
[1728735320680,1.2902,146.32,146.28,11.8287]
[1728735321470,3.4183,146.31,146.28,11.8287]
[1728735325769,1.2902,146.32,146.29,3.4185]
[1728735325982,3.54292,146.33,146.29,8.41]
[1728735326577,0.12502,146.33,146.3,3.4182]
[1728735326778,0.12502,146.33,146.29,8.41]
[1728735326982,0.12502,146.33,146.31,8.41]
[1728735327880,0.12502,146.33,146.32,3.418]
[1728735328082,0.12502,146.33,146.28,8.41]
[1728735328378,11.95282,146.33,146.27,11.1549]
[1728735328978,3.418,146.32,146.29,3.4185]
[1728735330282,11.95282,146.33,146.29,3.4185]
[1728735336782,11.95282,146.33,146.3,3.4183]
[1728735337589,0.12502,146.33,146.31,3.4181]
[1728735340991,0.12502,146.33,146.32,3.418]
[1728735341191,0.12502,146.33,146.27,1.4073]
[1728735341393,8.53502,146.33,146.27,9.8173]
[1728735342584,3.4181,146.32,146.29,3.4186]
[1728735343094,0.12502,146.33,146.28,8.41]
[1728735343282,0.12502,146.33,146.3,11.8284]
[1728735343686,0.12502,146.33,146.3,8.41]
[1728735344394,0.12502,146.33,146.31,3.4182]
[1728735350396,8.41,146.32,146.3,3.4184]
[1728735352593,11.95302,146.33,146.3,3.4184]
[1728735356697,0.12502,146.33,146.3,3.4184]
[1728735356897,0.12502,146.33,146.31,3.4181]
[1728735357090,0.12502,146.33,146.31,11.8281]
[1728735357497,0.12502,146.33,146.32,11.828]
[1728735358102,0.12502,146.33,146.32,3.418]
[1728735360500,0.12502,146.33,146.3,8.41]
[1728735360804,0.12502,146.33,146.3,11.8283]
[1728735361495,0.12502,146.33,146.3,8.41]
[1728735361704,0.12502,146.33,146.31,3.4182]
[1728735363603,0.12502,146.33,146.32,3.418]
[1728735368308,0.12502,146.33,146.32,11.828]
[1728735370812,0.12502,146.33,146.32,3.418]
[1728735376610,0.12502,146.33,146.3,8.41]
[1728735376813,0.12502,146.33,146.31,3.4181]
[1728735379717,8.41,146.32,146.27,1.4073]
[1728735380211,0.12502,146.33,146.27,9.8173]
[1728735380414,0.12502,146.33,146.29,3.4186]
[1728735380415,11.95282,146.33,146.29,3.4186]
[1728735380615,0.12502,146.33,146.29,8.41]
[1728735380921,3.54272,146.33,146.3,3.4183]
[1728735381218,3.54272,146.33,146.29,8.41]
[1728735381817,11.95272,146.33,146.29,8.41]
[1728735382512,11.95272,146.33,146.29,11.8285]
[1728735383114,3.54272,146.33,146.29,11.8285]
[1728735385516,3.54272,146.33,146.3,3.4184]
[1728735386720,0.12502,146.33,146.3,3.4184]
[1728735388128,0.12502,146.33,146.32,11.828]
[1728735390316,0.12502,146.33,146.32,3.418]
[1728735390722,0.12502,146.33,146.31,3.418]
[1728735400326,0.12502,146.33,146.32,3.418]
[1728735409636,8.53502,146.33,146.3,3.4182]
[1728735410239,11.95282,146.33,146.3,3.4182]
[1728735410543,11.95282,146.33,146.29,3.4186]
[1728735411450,8.53502,146.33,146.27,1.4073]
[1728735411652,11.8281,146.32,146.28,3.4188]
[1728735411947,8.41,146.32,146.26,3.36864132]
[1728735412246,8.41,146.3,146.26,8.41]
[1728735412447,8.41,146.3,146.27,3.4189]
[1728735412839,8.41,146.29,146.26,3.4192]
[1728735413043,8.41,146.29,146.23,2.7281]
[1728735413242,8.41,146.28,146.23,1.3335]
[1728735413447,8.41,146.25,146.22,3.4203]
[1728735414346,8.41,146.25,146.21,3.54552]
[1728735415041,8.41,146.25,146.22,3.4203]
[1728735415244,8.41,146.23,146.21,0.12502]
[1728735415451,8.41,146.22,146.21,0.12502]
[1728735415950,8.41,146.23,146.21,0.12502]
[1728735418450,8.41,146.22,146.21,0.12502]
[1728735419949,11.8303,146.22,146.17,3.4214]
[1728735420254,8.41,146.21,146.17,11.8314]
[1728735420951,8.41,146.21,146.17,3.4214]
[1728735422153,3.4203,146.22,146.17,11.8314]
[1728735422154,11.8303,146.22,146.17,11.8314]
[1728735422351,11.8301,146.23,146.18,3.4212]
[1728735423750,11.8303,146.22,146.18,3.4212]
[1728735428354,8.41,146.21,146.18,3.4212]
[1728735429151,8.41,146.21,146.17,8.41]
[1728735429352,8.41,146.19,146.14,8.41]
[1728735429554,8.41,146.17,146.13,1.4243]
[1728735429753,8.41,146.17,146.14,3.422]
[1728735430457,8.41,146.17,146.09,0.12502]
[1728735430658,8.41,146.16,146.11,8.41]
[1728735430852,8.41,146.16,146.1,8.41]
[1728735431056,8.41,146.15,146.1,8.41]
[1728735431259,8.41,146.15,146.11,3.4227]
[1728735431950,11.8322,146.14,146.1,11.833]
[1728735434458,11.8322,146.14,146.1,3.423]
[1728735434960,8.41,146.14,146.09,0.12502]
[1728735435257,2.7013,146.2,146.11,8.41]
[1728735435457,8.41,146.17,146.11,8.41]
[1728735435648,8.41,146.13,146.09,0.12502]
[1728735436366,3.4227,146.12,146.09,0.12502]
[1728735437061,11.8327,146.12,146.09,0.12502]
[1728735441560,8.41,146.12,146.09,0.12502]
[1728735442873,8.41,146.12,146.09,3.54832]
[1728735444175,1.4214,146.19,146.1,3.4231]
[1728735444362,8.41,146.14,146.1,3.4231]
[1728735444757,8.41,146.12,146.1,3.4231]
[1728735445769,11.833,146.11,146.09,0.12502]
[1728735446070,8.41,146.1,146.09,0.12502]
[1728735446465,11.8331,146.1,146.07,3.4236]
[1728735447469,8.41,146.1,146.07,3.4236]
[1728735448371,11.833,146.11,146.07,3.4236]
[1728735449870,2.7197,146.14,146.07,8.41]
[1728735450073,8.41,146.12,146.09,3.4233]
[1728735450671,11.8327,146.12,146.09,3.4233]
[1728735451169,3.4227,146.12,146.09,3.4233]
[1728735451366,8.41,146.11,146.09,3.4233]
[1728735453174,13.2285,146.13,146.1,3.4229]
[1728735454863,0.12502,146.15,146.12,3.4225]
[1728735454864,8.53502,146.15,146.12,3.4225]
[1728735456070,8.53502,146.15,146.13,3.4224]
[1728735456671,8.53502,146.15,146.12,3.4226]
[1728735457071,11.95702,146.15,146.12,3.4226]
[1728735457567,8.41,146.14,146.12,3.4226]
[1728735461077,11.8326,146.13,146.09,3.4232]
[1728735461275,11.8326,146.13,146.08,8.41]
[1728735462073,8.41,146.13,146.08,8.41]
[1728735462278,8.41,146.13,146.1,3.4231]
[1728735465279,11.8326,146.13,146.09,3.4232]
[1728735467373,8.41,146.11,146.09,3.4232]
[1728735467578,8.41,146.11,146.08,3.4235]
[1728735467777,8.41,146.1,146.08,3.4235]
[1728735467980,8.41,146.12,146.07,8.41]
[1728735468177,8.41,146.14,146.11,3.4228]
[1728735469585,11.8322,146.14,146.11,3.4228]
[1728735469787,8.41,146.13,146.11,3.4228]
[1728735470580,8.41,146.14,146.11,3.4228]
[1728735471384,11.95702,146.15,146.12,3.4226]
[1728735474886,8.41,146.14,146.12,3.4226]
[1728735475082,8.41,146.14,146.1,8.41]
[1728735475287,11.8322,146.14,146.11,3.4228]
[1728735477995,11.95712,146.15,146.12,3.4226]
[1728735481392,3.54712,146.15,146.12,3.4226]
[1728735481594,0.12502,146.15,146.13,3.4223]
[1728735482891,0.12502,146.15,146.12,8.41]
[1728735483099,0.12502,146.15,146.14,3.4222]
[1728735484595,0.12502,146.15,146.12,8.41]
[1728735484801,3.54702,146.15,146.12,3.4226]
[1728735484999,11.95702,146.15,146.12,3.4226]
[1728735485201,11.95702,146.15,146.11,1.4249]
[1728735485501,11.95702,146.15,146.11,3.4227]
[1728735486403,11.95702,146.15,146.11,11.8327]
[1728735486701,11.95702,146.15,146.12,3.4226]
[1728735486906,3.4222,146.14,146.09,8.41]
[1728735487307,8.41,146.14,146.1,3.423]
[1728735487502,3.4224,146.13,146.1,3.423]
[1728735489909,3.4224,146.13,146.09,3.4233]
[1728735491410,8.41,146.14,146.09,3.4233]
[1728735491601,3.4227,146.12,146.09,3.4233]
[1728735492110,3.4227,146.12,146.08,8.41]
[1728735492306,3.4227,146.12,146.05,1.3696]
[1728735492307,8.41,146.12,146.05,1.3696]
[1728735492606,3.423,146.11,146.06,8.41]
[1728735492905,3.423,146.11,146.07,3.4237]
[1728735493105,3.423,146.11,146.06,8.41]
[1728735494310,11.833,146.11,146.06,8.41]
[1728735495212,11.8331,146.1,146.05,1.3696]
[1728735495511,1.3362,146.13,146.05,1.3696]
[1728735495512,8.41,146.09,146.05,1.3696]
[1728735495710,1.3362,146.13,145.98,1.3558]
[1728735495711,8.41,146.07,145.98,1.3558]
[1728735496005,11.834,146.07,146.02,8.41]
[1728735496206,8.41,146.07,146.02,8.41]
[1728735497112,8.41,146.06,146.02,8.41]
[1728735497314,8.41,146.05,145.98,2.685]
[1728735497514,8.41,146.05,146.0,8.41]
[1728735498215,11.8345,146.05,146.01,3.4251]
[1728735499309,11.8345,146.04,146.0,3.4254]
[1728735499621,11.8345,146.04,145.99,8.41]
[1728735499915,11.8345,146.04,146.0,3.4255]
[1728735500708,11.8345,146.04,145.99,3.4257]
[1728735500905,11.8345,146.04,145.98,2.685]
[1728735501416,3.4251,146.02,145.98,3.4257]
[1728735501616,8.41,146.0,145.98,3.4257]
[1728735502509,8.41,146.0,145.97,0.12502]
[1728735502510,8.41,146.0,145.97,3.55112]
[1728735503517,8.41,146.02,145.98,3.4258]
[1728735503720,8.41,146.02,145.98,11.8358]
[1728735503919,8.41,146.02,145.98,8.41]
[1728735504317,1.3425,146.07,145.99,8.41]
[1728735504519,8.41,146.04,145.99,8.41]
[1728735505109,6.07250985,146.08,145.97,0.12502]
[1728735505419,8.41,146.04,146.0,8.41]
[1728735505615,8.41,146.04,146.01,3.4251]
[1728735505810,8.41,146.05,146.0,8.41]
[1728735506216,8.41,146.05,146.02,3.4248]
[1728735506918,11.8343,146.05,146.02,3.4248]
[1728735507925,8.41,146.04,146.02,3.4248]
[1728735509617,8.41,146.07,146.02,8.41]
[1728735510417,8.41,146.07,146.04,3.4243]
[1728735510619,8.41,146.07,146.02,8.41]
[1728735511120,8.41,146.06,146.04,3.4244]
[1728735513618,3.4238,146.07,146.04,3.4244]
[1728735513817,8.41,146.06,146.04,3.4244]
[1728735515719,8.41,146.07,146.06,3.424]
[1728735517230,8.53502,146.09,146.07,3.4237]
[1728735517530,8.53502,146.09,146.04,8.41]
[1728735518429,11.95842,146.09,146.06,3.424]
[1728735518727,3.54842,146.09,146.06,3.424]
[1728735518928,8.41,146.08,146.06,3.424]
[1728735520427,0.12502,146.09,146.08,3.4236]
[1728735524431,0.12502,146.15,146.08,8.41]
[1728735524628,0.12502,146.15,146.11,8.41]
[1728735525230,0.12502,146.15,146.14,3.4222]
[1728735525429,0.12502,146.15,146.14,11.8322]
[1728735525625,0.12502,146.15,146.14,3.4222]
[1728735526630,0.12502,146.21,146.14,8.41]
[1728735526830,8.41,146.2,146.17,3.4215]
[1728735528823,8.41,146.2,146.18,3.4212]
[1728735529329,8.41,146.2,146.14,8.41]
[1728735529632,8.41,146.2,146.17,3.4214]
[1728735530026,11.8308,146.2,146.17,3.4214]
[1728735531227,8.41,146.18,146.16,3.4216]
[1728735532134,3.4208,146.2,146.16,3.4216]
[1728735532437,8.41,146.19,146.16,3.4216]
[1728735535230,11.831,146.19,146.15,3.4219]
[1728735536529,0.12502,146.21,146.16,8.41]
[1728735536739,11.8308,146.2,146.16,3.4216]
[1728735539741,3.4212,146.19,146.15,11.8319]
[1728735541141,0.12502,146.21,146.11,1.4144]
[1728735541142,8.41,146.18,146.11,1.4144]
[1728735541437,8.41,146.17,146.12,8.41]
[1728735541645,8.41,146.16,146.11,1.4144]
[1728735541839,3.4222,146.14,146.11,4.8371]
[1728735542037,8.41,146.15,146.11,4.8371]
[1728735542437,11.832,146.15,146.11,4.8371]
[1728735544037,11.832,146.15,146.11,9.8244]
[1728735544237,11.832,146.15,146.12,3.4226]
[1728735544538,11.8318,146.16,146.12,3.4226]
[1728735544939,8.41,146.16,146.11,9.8244]
[1728735545136,8.41,146.19,146.13,8.41]
[1728735545337,0.12502,146.21,146.15,8.41]
[1728735545541,8.41,146.2,146.15,8.41]
[1728735545740,8.41,146.2,146.17,3.4213]
[1728735546145,8.41,146.2,146.15,8.41]
[1728735546341,11.8309,146.2,146.16,3.4217]
[1728735547942,8.41,146.19,146.16,3.4217]
[1728735548149,11.8311,146.19,146.16,3.4217]
[1728735549141,8.41,146.19,146.16,3.4217]
[1728735549852,11.8312,146.19,146.16,3.4217]
[1728735550053,8.41,146.18,146.16,3.4217]
[1728735550739,11.8316,146.17,146.12,11.8325]
[1728735550940,11.8316,146.17,146.12,8.41]
[1728735551738,8.41,146.17,146.14,3.4222]
[1728735553745,3.4212,146.19,146.15,11.8319]
[1728735554265,3.4212,146.19,146.16,3.4217]
[1728735555153,3.4212,146.19,146.15,11.8319]
[1728735555358,11.8312,146.19,146.15,3.4219]
[1728735556542,0.12502,146.21,146.11,1.4144]
[1728735556543,8.41,146.17,146.13,8.41]
[1728735557351,8.41,146.17,146.14,3.4221]
[1728735558057,8.41,146.15,146.12,3.4225]
[1728735558556,8.41,146.15,146.13,3.4224]
[1728735559462,8.41,146.15,146.11,4.8372]
[1728735559659,8.41,146.15,146.11,1.4144]
[1728735560054,3.4217,146.17,146.13,3.4224]
[1728735560248,8.41,146.17,146.12,8.41]